[Event "13th Palmanova Festival A 2024"]
[Site "Palmanova"]
[Date "2025.01.03"]
[Round "9.6"]
[White "Marn, Jan"]
[Black "Reza, Wojciech"]
[Result "0-1"]
[ECO "C41"]
[WhiteElo "2400"]
[BlackElo "2227"]
[Annotator "TA"]
[PlyCount "145"]
[EventDate "2024.12.27"]
[EventCountry "ITA"]
[SourceTitle "playchess.com"]
[Source "ChessBase"]
[SourceQuality "1"]
[TimeControl "6000+30"]

{[%evp 51,145,-213,-202,-206,-200,-209,-209,-279,-293,-616,-370,-332,-164,-270,-222,-210,-204,-534,-536,-537,-528,-397,-488,-484,-439,-487,-437,-570,-576,-568,-568,-553,-533,-784,-752,-833,-495,-652,-571,-548,-548,-542,-304,-315,-307,-296,-296,-260,-202,-205,-206,-207,-175,-191,-6,-6,-6,-161,-161,-301,0,0,0,-298,0,0,0,0,0,0,0,-8,-8,-8,-8,-8,-8,-8,-8,-8,-8,-8,-8,-8,-8,-8,0,0,0,0,0,0,0,-29982,-29983,-29985]} 1. d4 {[%emt 0:04:05]} d6 {[%emt 0:05:04]} 2. e4 {[%emt 0:00:28]} Nf6 {[%emt 0:00:12]} 3. Nc3 {[%emt 0:00:31]} e5 {[%emt 0:00:27]} 4. Nf3 {[%emt 0:00:08]} Nbd7 {[%emt 0:01:32]} 5. Bc4 {[%emt 0:01:24]} h6 {[%emt 0:01:48]} 6. h3 {[%emt 0:02:41]} Be7 {[%emt 0:01:01]} 7. Be3 {[%emt 0:00:17]} c6 {[%emt 0:02:26]} 8. a4 {[%emt 0:03:01]} O-O {[%emt 0:02:59]} 9. dxe5 {[%emt 0:04:12]} dxe5 {[%emt 0:01:36]} 10. Qe2 {[%emt 0:11:03]} Qc7 {[%emt 0:18:34]} 11. Nh4 {[%emt 0:17:17]} Nc5 {[%emt 0:22:11]} 12. Qf3 {[%emt 0:09:26]} Be6 {[%emt 0:04:19]} 13. Bxe6 {[%emt 0:00:24]} Nxe6 {[%emt 0:00:26]} 14. Nf5 {[%emt 0:01:35]} Rfd8 {[%emt 0:02:31]} 15. O-O {[%emt 0:00:25]} Nd4 {[%emt 0:05:37]} 16. Bxd4 {[%emt 0:01:59]} exd4 {[%emt 0:00:10]} 17. Ne2 {[%emt 0:00:06]} c5 {[%emt 0:05:54]} 18. Neg3 {[%emt 0:00:18]} Qe5 {[%emt 0:07:57]} 19. Nh5 {[%emt 0:13:16]} Nxh5 {[%emt 0:00:42]} 20. Qxh5 {[%emt 0:00:02]} Qe6 {[%emt 0:00:15]} 21. f4 {[%emt 0:00:27]} Bf8 {[%emt 0:00:22]} 22. Qf3 {[%emt 0:00:17]} Rac8 {[%emt 0:05:11]} 23. Kh1 {[%emt 0:12:31]} c4 {[%emt 0:00:56]} 24. Rad1 {[%emt 0:00:43]} Qb6 {[%emt 0:00:04]} 25. Qg4 {[%emt 0:01:43]} Rc6 {[%emt 0:03:48]} 26. b3 {[%emt 0:02:29]} cxb3 {[%emt 0:01:59]} 27. cxb3 {[%emt 0:00:01]} d3 $1 {[%emt 0:00:09]} (27... Qxb3 28. Nxd4 (28. Rxd4 $2 Rxd4 29. Nxd4 Qc4 $19) 28... Qxa4 29. Nxc6 Rxd1 30. Rxd1 $18 (30. Qxd1 Qxc6 31. e5 b5 $16)) 28. Qh4 {[%emt 0:01:54]} d2 {[%emt 0:03:29]} 29. Kh2 {[%emt 0:04:04]} Rd3 {[%emt 0:00:34]} 30. Rf2 $2 {[%emt 0:02:17]} (30. a5 Qxa5 (30... Qxb3 $2 31. Qf2 $19) 31. Ne7+ Bxe7 32. Qxe7) 30... Qb4 {[%emt 0:00:13]} (30... Rxb3 31. Rfxd2 Bc5 32. a5 $18) 31. Qg4 {[%emt 0:00:29]} Qc3 {[%emt 0:02:42]} (31... Rxb3 32. Rfxd2 Rg6 33. Qe2 $11) (31... Qxe4 32. Rdxd2 Rxd2 (32... Rxb3 $2 33. Rd8 $18) 33. Rxd2 $19) (31... g6 $142 32. Ng3 Rcc3 (32... Qxb3 33. Rfxd2 Rxd2 34. Rxd2 $11)) 32. e5 {[%emt 0:03:54]} (32. h4 $142) 32... Rg6 {[%emt 0:00:32]} (32... Qxb3 33. Rfxd2 Rxd2 34. Rxd2 $11) 33. Qe2 {[%emt 0:00:02]} Bb4 $1 {[%emt 0:00:14]} (33... Qxb3 34. Rxd2 Rxd2 35. Qxd2 $15) 34. Nh4 $2 {[%emt 0:04:12]} (34. h4 {is more resistant.}) 34... Re3 $19 {[%emt 0:05:53]} 35. Qh5 {[%emt 0:03:06]} Rxh3+ {[%emt 0:05:36]} 36. gxh3 {[%emt 0:00:06]} Qg3+ {[%emt 0:00:08]} 37. Kh1 {[%emt 0:00:07]} Qxf2 {[%emt 0:00:26]} 38. Nxg6 {[%emt 0:00:07]} fxg6 {[%emt 0:00:06]} 39. Qg4 {[%emt 0:00:29]} h5 {[%emt 0:00:39]} 40. Qg2 {[%emt 0:04:33]} Qxf4 {[%emt 0:01:08]} 41. Qd5+ {[%emt 0:00:00]} Kh7 {[%emt 0:00:00]} 42. Kg2 {[%emt 0:00:00]} Qe3 {[%emt 0:00:00]} 43. Qc4 {[%emt 0:00:00]} Qxe5 {[%emt 0:00:00]} 44. Kf3 {[%emt 0:00:00]} a5 {[%emt 0:00:00]} 45. Qe4 {[%emt 0:00:00]} Qh2 {[%emt 0:00:00]} 46. Qh4 {[%emt 0:00:00]} Qc7 {[%emt 0:00:00]} 47. Qe4 {[%emt 0:00:00]} Qf7+ {[%emt 0:00:00]} 48. Ke2 {[%emt 0:00:00]} Qxb3 {[%emt 0:00:00]} 49. Rg1 {[%emt 0:00:00]} Qf7 {[%emt 0:00:00]} (49... Qxa4 50. Qxg6+ Kh8 51. Qxg7#) 50. h4 {[%emt 0:00:00]} Qf6 {[%emt 0:00:00]} 51. Rg5 {[%emt 0:00:00]} Kh6 {[%emt 0:00:00]} 52. Qe3 {[%emt 0:00:00] [#]} d1=Q+ $2 {[%emt 0:02:37]} (52... Qa6+ $1 $19 53. Rb5+ Kh7) 53. Kxd1 $11 {[%emt 0:00:00]} Qa1+ {[%emt 0:00:09]} 54. Ke2 $2 {[%emt 0:00:00]} (54. Kc2 $1 $11 {and White has nothing to worry.} Qa2+ (54... Qxa4+ 55. Kb2 $17) 55. Kc1 Ba3+ (55... Qxa4 56. Rxh5+ Kxh5 57. Qg5#) 56. Kd1 Qa1+ 57. Ke2) 54... Qe1+ $19 {[%emt 0:00:13]} (54... Qxa4 55. Rxh5+ Kxh5 56. Qg5#) 55. Kd3 {[%emt 0:00:00] [#]} (55. Kf3 $142 Qf1+ (55... Qxh4 $2 56. Rg4+ g5 57. Rxh4 $18) 56. Ke4) 55... Qc3+ $2 {[%emt 0:00:06]} (55... Qxh4 $2 56. Rg4+ (56. Rxa5+ Kh7 $17) 56... Kh7 57. Rxh4 $18) ({Black should try} 55... Qd1+ $1 $19 56. Ke4 Kh7 (56... Qxa4 57. Rxh5+ Kxh5 58. Qg5#)) 56. Ke2 $1 $11 {[%emt 0:00:00]} Qe1+ $2 {[%emt 0:00:19][%mdl 8192]} (56... Qc2+ $11 57. Kf3 Kh7 (57... Qxa4 58. Rxh5+ Kxh5 59. Qg5#)) 57. Kd3 $19 {[%emt 0:00:00] [#]} Qxe3+ $2 {[%emt 0:00:09]} (57... Qxh4 $2 {is the wrong capture.} 58. Rg4+ (58. Rxa5+ Kh7 $17) 58... Kh7 59. Rxh4 $18) (57... Qd1+ $1 $19 58. Ke4 Kh7 (58... Qxa4 59. Rxh5+ Kxh5 60. Qg5#)) 58. Kxe3 $11 {[%emt 0:00:00]} b6 {[%emt 0:00:15]} 59. Rb5 {[%emt 0:00:00]} Be7 {[%emt 0:04:06]} 60. Ke2 {[%emt 0:00:00]} Bc5 {[%emt 0:01:08]} 61. Kf3 {[%emt 0:00:00]} g5 {[%emt 0:00:19]} 62. hxg5+ $1 {[%emt 0:00:00]} Kxg5 {[%emt 0:00:06]} 63. Rb1 {[%emt 0:00:00]} Kf5 {[%emt 0:00:30]} 64. Rd1 {[%emt 0:00:00]} Ke5 {[%emt 0:01:14]} 65. Rd7 {[%emt 0:00:00]} g6 {[%emt 0:00:58]} 66. Rg7 {[%emt 0:00:00]} Kf6 {[%emt 0:00:29]} 67. Rh7 {[%emt 0:00:00]} Kf5 {[%emt 0:00:48]} 68. Rf7+ {[%emt 0:00:00]} Kg5 {[%emt 0:00:11]} 69. Rd7 {[%emt 0:00:00]} Kf6 {[%emt 0:00:56]} 70. Rh7 {[%emt 0:00:00]} Be7 {[%emt 0:00:23]} 71. Ke4 {[%emt 0:19:51]} Bf8 {[%emt 0:00:34]} 72. Rh8 $2 {[%emt 0:00:00][%mdl 8192]} (72. Rb7 $11) 72... Kg7 {[%emt 0:00:11]} 73. Kd4 {[%emt 0:20:51]} 0-1

[Event "13th Palmanova Festival A 2024"]
[Site "Palmanova"]
[Date "2025.01.03"]
[Round "9.7"]
[White "Di Benedetto, Edoardo"]
[Black "Stankovic, Milos"]
[Result "1/2-1/2"]
[ECO "E15"]
[WhiteElo "2411"]
[BlackElo "2462"]
[Annotator "TA"]
[PlyCount "21"]
[EventDate "2024.12.27"]
[EventCountry "ITA"]
[SourceTitle "playchess.com"]
[Source "ChessBase"]
[SourceQuality "1"]
[TimeControl "6000+30"]

{[%evp 16,21,16,0,0,0,22,8]} 1. d4 {[%emt 0:02:58]} Nf6 {[%emt 0:00:10]} 2. c4 {[%emt 0:00:03]} e6 {[%emt 0:00:30]} 3. Nf3 {[%emt 0:00:06]} b6 {[%emt 0:01:32]} 4. g3 {[%emt 0:00:09]} Ba6 {[%emt 0:00:28]} 5. b3 {[%emt 0:00:06]} Bb4+ {[%emt 0:00:32]} 6. Bd2 {[%emt 0:00:04]} Be7 {[%emt 0:00:28]} 7. Bg2 {[%emt 0:00:04]} c6 {[%emt 0:00:31]} 8. O-O {[%emt 0:00:12]} d5 {[%emt 0:00:28]} 9. Qc2 {[%emt 0:00:22]} O-O {[%emt 0:00:33]} 10. Bf4 {[%emt 0:00:24]} Nh5 {[%emt 0:00:30]} 11. Bc1 {[%emt 0:00:46]} 1/2-1/2

[Event "13th Palmanova Festival A 2024"]
[Site "Palmanova"]
[Date "2025.01.03"]
[Round "9.8"]
[White "Skawinski, Arkadiusz"]
[Black "Gkoumas, Georgios"]
[Result "1/2-1/2"]
[ECO "B31"]
[WhiteElo "2330"]
[BlackElo "2449"]
[Annotator "TA"]
[PlyCount "33"]
[EventDate "2024.12.27"]
[EventCountry "ITA"]
[SourceTitle "playchess.com"]
[Source "ChessBase"]
[SourceQuality "1"]
[TimeControl "6000+30"]

{[%evp 16,33,23,26,19,12,12,14,13,16,16,0,13,0,26,20,15,15,27,23]} 1. e4 {[%emt 0:07:47]} c5 {[%emt 0:10:22]} 2. Nf3 {[%emt 0:00:05]} Nc6 {[%emt 0:00:05]} 3. Bb5 {[%emt 0:00:04]} g6 {[%emt 0:00:06]} 4. Bxc6 {[%emt 0:00:04]} dxc6 {[%emt 0:00:06]} 5. d3 {[%emt 0:00:03]} Bg7 {[%emt 0:00:07]} 6. O-O {[%emt 0:00:13]} Nf6 {[%emt 0:00:33]} 7. Nc3 {[%emt 0:03:55]} Bg4 {[%emt 0:00:25]} 8. h3 {[%emt 0:00:04]} Bxf3 {[%emt 0:00:04]} 9. Qxf3 {[%emt 0:00:04]} O-O {[%emt 0:00:22]} 10. Be3 {[%emt 0:12:56]} Qd6 {[%emt 0:01:18]} 11. Rad1 {[%emt 0:09:15]} e5 {[%emt 0:19:30]} 12. g4 {[%emt 0:06:22]} Nd7 {[%emt 0:07:21]} 13. Kh1 {[%emt 0:03:44]} Rad8 {[%emt 0:07:15]} 14. Qg3 {[%emt 0:02:36]} c4 {[%emt 0:01:02]} 15. a3 {[%emt 0:26:05]} (15. Bxa7 $2 b6 16. d4 (16. dxc4 $2 Qc7 $19) 16... Qc7 $19) 15... cxd3 {[%emt 0:14:29]} 16. Rxd3 {[%emt 0:00:13]} Qc7 {[%emt 0:01:44]} 17. Rfd1 {[%emt 0:00:19]} (17. Bxa7 $2 {perishes.} b6 18. Bxb6 Nxb6 $19) 1/2-1/2

[Event "13th Palmanova Festival A 2024"]
[Site "Palmanova"]
[Date "2025.01.03"]
[Round "9.9"]
[White "Savanovic, Aleksandar"]
[Black "Pegno, Mattia"]
[Result "1/2-1/2"]
[ECO "B85"]
[WhiteElo "2354"]
[BlackElo "2243"]
[Annotator "TA"]
[PlyCount "47"]
[EventDate "2024.12.27"]
[EventCountry "ITA"]
[SourceTitle "playchess.com"]
[Source "ChessBase"]
[SourceQuality "1"]
[TimeControl "6000+30"]

{[%evp 27,47,21,27,44,38,51,171,21,12,-15,-8,-31,-39,-127,-130,-143,0,0,0,-134,0,0]} 1. e4 {[%emt 0:02:41]} c5 {[%emt 0:00:12]} 2. Nf3 {[%emt 0:00:08]} e6 {[%emt 0:00:14]} 3. d4 {[%emt 0:00:06]} cxd4 {[%emt 0:00:06]} 4. Nxd4 {[%emt 0:00:04]} Nc6 {[%emt 0:00:09]} 5. Nc3 {[%emt 0:00:16]} Qc7 {[%emt 0:00:15]} 6. Be2 {[%emt 0:00:11]} a6 {[%emt 0:00:19]} 7. O-O {[%emt 0:00:06]} Nf6 {[%emt 0:00:13]} 8. Be3 {[%emt 0:01:52]} d6 {[%emt 0:08:17]} 9. f4 {[%emt 0:00:10]} Bd7 {[%emt 0:02:11]} 10. a4 {[%emt 0:02:02]} Be7 {[%emt 0:19:38]} 11. Kh1 {[%emt 0:05:49]} O-O {[%emt 0:17:24]} 12. Qe1 {[%emt 0:01:08]} Nxd4 {[%emt 0:03:19]} 13. Bxd4 {[%emt 0:00:07]} Bc6 {[%emt 0:02:30]} 14. Qg3 {[%emt 0:00:34]} g6 {[%emt 0:10:35]} 15. f5 {[%emt 0:00:26]} e5 {[%emt 0:07:21]} (15... Bxe4 $2 16. fxe6 (16. Bxf6 Bxg2+ 17. Qxg2 Bxf6 $18) 16... fxe6 17. Bxf6 Bxg2+ 18. Qxg2 $18) 16. Be3 {[%emt 0:00:05]} Bxe4 {[%emt 0:03:06] [#]} (16... Nxe4 17. Nxe4 Bxe4 18. Bd3 Bxd3 19. cxd3 $15) (16... Kh8 $14) 17. Bh6 {[%emt 0:03:14]} (17. fxg6 $1 $18 Bxg6 (17... Bxc2 $2 18. Rxf6 Bxf6 19. Nd5 $18) (17... hxg6 $2 18. Bg5 $18) 18. Rxf6 Bxf6 19. Nd5 Qxc2 (19... Qd8 $2 20. Bb6 $18) 20. Nxf6+ Kh8 21. Re1) 17... Bc6 $11 {[%emt 0:06:50][%cal Od6d5]} 18. Bxf8 {[%emt 0:01:27]} Rxf8 {[%emt 0:00:23]} 19. Rae1 {[%emt 0:03:36]} d5 {[%emt 0:07:32][%mdl 1024] Black has compensation.} 20. Bf3 {[%emt 0:06:25]} ({Better is} 20. fxg6 $15 fxg6 21. a5) 20... Bd6 $17 {[%emt 0:00:29]} 21. Qh4 {[%emt 0:00:18]} Be7 {[%emt 0:05:20]} 22. Qg3 $1 {[%emt 0:02:53]} Bd6 {[%emt 0:00:03]} 23. Qh4 {[%emt 0:01:25]} Be7 {[%emt 0:00:07]} (23... Kg7 $17 {Threatens to win with ...h6.} 24. Ne2 e4 (24... gxf5 $2 {too greedy.} 25. Qg5+ Kh8 26. Qxf6+ $18)) 24. Qg3 $1 {[%emt 1:17:27]} 1/2-1/2

[Event "13th Palmanova Festival A 2024"]
[Site "Palmanova"]
[Date "2025.01.03"]
[Round "9.10"]
[White "Javornik, Nik"]
[Black "Adharsh K"]
[Result "0-1"]
[ECO "B67"]
[WhiteElo "2300"]
[BlackElo "2235"]
[Annotator "TA"]
[PlyCount "78"]
[EventDate "2024.12.27"]
[EventCountry "ITA"]
[SourceTitle "playchess.com"]
[Source "ChessBase"]
[SourceQuality "1"]
[TimeControl "6000+30"]

{[%evp 20,77,46,32,52,48,42,0,66,37,29,42,37,24,36,42,43,50,76,26,79,31,25,10,63,58,66,61,57,43,62,55,36,36,42,0,70,0,79,18,106,0,0,-12,0,-37,-26,-37,0,-164,-164,-1052,-1039,-29998,0,0,0,-29998,-29999,-29999]} 1. e4 {[%emt 0:00:05]} c5 {[%emt 0:00:33]} 2. Nf3 {[%emt 0:00:50]} Nc6 {[%emt 0:00:07]} 3. d4 {[%emt 0:00:29]} cxd4 {[%emt 0:00:05]} 4. Nxd4 {[%emt 0:00:07]} Nf6 {[%emt 0:00:06]} 5. Nc3 {[%emt 0:00:53]} d6 {[%emt 0:00:06]} 6. Bg5 {[%emt 0:01:01]} e6 {[%emt 0:00:05]} 7. Qd2 {[%emt 0:01:07]} Be7 {[%emt 0:00:14]} 8. O-O-O {[%emt 0:01:25]} a6 {[%emt 0:00:16]} 9. f3 {[%emt 0:00:51]} Nxd4 {[%emt 0:01:32]} 10. Qxd4 {[%emt 0:00:05]} Bd7 {[%emt 0:03:52]} 11. h4 {[%emt 0:04:53]} h6 {[%emt 0:03:42]} 12. Be3 {[%emt 0:16:09]} b5 {[%emt 0:06:08]} 13. Kb1 {[%emt 0:02:11]} Qa5 {[%emt 0:22:09]} ({Better is} 13... h5 $11) 14. g4 {[%emt 0:03:05]} b4 {[%emt 0:00:41]} 15. Ne2 {[%emt 0:00:07]} e5 $1 {[%emt 0:00:40]} 16. Qb6 {[%emt 0:07:43]} Qxb6 {[%emt 0:00:05]} 17. Bxb6 {[%emt 0:00:02]} Be6 {[%emt 0:00:09]} 18. Ng3 {[%emt 0:08:25]} g6 {[%emt 0:04:14] Inhibits Nf5.} 19. Be2 {[%emt 0:01:44]} (19. h5 $16) 19... Kd7 {[%emt 0:00:50]} (19... a5 $11) 20. Be3 {[%emt 0:01:34]} (20. Ba5 $16) 20... Kc6 {[%emt 0:04:43]} 21. h5 {[%emt 0:03:40]} g5 {[%emt 0:01:08]} (21... gxh5 $11 22. Nxh5 Nxh5 23. Rxh5 Bg5 24. Bxg5 hxg5) 22. c4 {[%emt 0:07:52]} bxc3 {[%emt 0:09:23]} 23. Rc1 {[%emt 0:00:16]} Kd7 {[%emt 0:03:51]} 24. Rxc3 {[%emt 0:00:07]} (24. bxc3 d5 $15) 24... d5 {[%emt 0:05:12][%cal Bd6d5,Bd5d4][%mdl 32]} 25. Rcc1 {[%emt 0:06:50]} d4 {[%emt 0:04:02]} 26. Bd2 {[%emt 0:01:24]} (26. Rhd1 {seems wilder.} Rhb8 27. Nf5 Ba3 28. Rc2) 26... Rhb8 {[%emt 0:03:16]} 27. Rc2 {[%emt 0:06:30]} Ne8 {[%emt 0:07:01]} (27... a5 $11) 28. Rhc1 {[%emt 0:01:11]} (28. Nf5 $14) 28... Ra7 {[%emt 0:00:56]} (28... a5 $1 $11 {keeps the balance.}) 29. Ka1 {[%emt 0:06:11]} ({White should play} 29. Nf5 $16) 29... Nd6 {[%emt 0:13:54]} (29... a5 $11) 30. Rc6 {[%emt 0:01:26]} (30. Nf5 $16) 30... a5 $11 {[%emt 0:00:35]} 31. Bd3 {[%emt 0:01:51]} Rab7 {[%emt 0:03:56]} 32. b3 {[%emt 0:02:14] [#]} Bxb3 $1 {[%emt 0:02:16]} 33. Bxa5 {[%emt 0:02:10][%cal Od3a6]} (33. axb3 $2 {perishes.} Rxb3 34. Rc7+ Kd8 $17) 33... Bc4 {[%emt 0:04:57] Some like it hot} 34. R6xc4 $2 {[%emt 0:03:25]} (34. Bxc4 $11 {and White has nothing to worry.} Kxc6 35. Bd5+ Kd7 36. Bc6+ Ke6 37. Bxb7 Rxb7 38. Nf5) 34... Nxc4 $40 {[%emt 0:00:04][%mdl 128] White is in trouble.} 35. Rxc4 $2 {[%emt 0:02:15] [#]} (35. Bxc4 Ba3 36. Rd1 Bb2+ 37. Kb1 Bc3+ 38. Bb3 Bxa5 39. Nf5) 35... Ba3 $1 {[%emt 0:00:30][%cal Ob7b1] ( -> ...Rb1+!)} 36. Bd2 {[%emt 0:05:08]} Bb2+ $2 {[%emt 0:00:25]} (36... Rb1+ $1 {mates} 37. Bxb1 Bb2#) 37. Kb1 $11 {[%emt 0:00:01] Strongly threatening Kc2.} Ba3+ {[%emt 0:00:43]} 38. Ka1 $2 {[%emt 0:01:30][%mdl 8192] [#]} (38. Kc2 $11 Rb1 39. Be2) 38... Rb1+ $3 {[%emt 0:00:24][%mdl 512]} 39. Bxb1 {[%emt 0:00:04]} Bb2# {[%emt 0:00:01]} 0-1

[Event "13th Palmanova Festival A 2024"]
[Site "Palmanova"]
[Date "2025.01.03"]
[Round "9.11"]
[White "Weidenhoefer, Max"]
[Black "Bouska, Jiri"]
[Result "1/2-1/2"]
[ECO "B60"]
[WhiteElo "1987"]
[BlackElo "2267"]
[Annotator "TA"]
[PlyCount "91"]
[EventDate "2024.12.27"]
[EventCountry "ITA"]
[SourceTitle "playchess.com"]
[Source "ChessBase"]
[SourceQuality "1"]
[TimeControl "6000+30"]

{[%evp 11,91,35,50,32,35,26,35,16,37,34,27,11,14,7,19,-37,-20,-25,-24,-33,0,-37,0,-17,10,16,14,16,28,16,20,16,29,6,70,79,104,102,76,77,130,132,159,159,159,146,145,158,161,152,170,127,137,122,137,133,187,153,156,160,186,80,89,0,0,0,0,0,0,0,0,0,0,0,0,0,0,0,0,0,0,0]} 1. e4 {[%emt 0:00:04]} c5 {[%emt 0:04:03]} 2. Nf3 {[%emt 0:01:48]} d6 {[%emt 0:00:27]} 3. d4 {[%emt 0:00:06]} cxd4 {[%emt 0:00:05]} 4. Nxd4 {[%emt 0:00:05]} Nf6 {[%emt 0:00:18]} 5. Nc3 {[%emt 0:00:46]} Nc6 {[%emt 0:00:06]} 6. Bg5 {[%emt 0:00:34]} Bd7 {[%emt 0:00:18]} 7. Nxc6 {[%emt 0:00:11]} bxc6 {[%emt 0:01:26]} 8. Bc4 {[%emt 0:00:51]} Qa5 {[%emt 0:08:37][%csl LRe4,LRg5]} 9. Bd2 {[%emt 0:06:05]} Qb6 {[%emt 0:03:14]} 10. Bb3 {[%emt 0:04:43]} e6 {[%emt 0:07:28]} 11. Qe2 {[%emt 0:05:52]} Be7 {[%emt 0:00:58]} 12. O-O {[%emt 0:02:15]} O-O {[%emt 0:04:42]} 13. e5 {[%emt 0:08:03]} (13. Na4 $11 Qc7 14. c4) 13... dxe5 $15 {[%emt 0:02:20]} 14. Qxe5 {[%emt 0:05:10]} c5 {[%emt 0:01:40]} 15. Qe2 {[%emt 0:17:43]} Bc6 {[%emt 0:03:51]} 16. Rad1 {[%emt 0:04:02]} h6 {[%emt 0:09:01]} 17. Bf4 {[%emt 0:05:21]} Bb7 {[%emt 0:01:25]} 18. Na4 {[%emt 0:02:44]} Qc6 {[%emt 0:03:19][%csl Gb7][%cal Rc6g2]} 19. f3 {[%emt 0:02:57][%cal Bf2f3,Bf3f4][%mdl 32] Active counter play!} Nd7 {[%emt 0:21:58]} 20. c4 {[%emt 0:02:02]} Bf6 {[%emt 0:09:51]} 21. Be3 {[%emt 0:04:13]} Qc7 {[%emt 0:01:22]} 22. Bc2 {[%emt 0:03:05]} Be5 {[%emt 0:12:23]} (22... Bc6 $11) 23. f4 $40 {[%emt 0:04:32][%mdl 128] White has strong attack.} Bd4 {[%emt 0:00:22]} 24. Bxd4 {[%emt 0:02:36]} cxd4 {[%emt 0:00:06]} 25. Rxd4 {[%emt 0:01:45]} Nf6 {[%emt 0:00:37]} ({Black should try} 25... Rfe8) 26. b4 {[%emt 0:04:12]} Rad8 {[%emt 0:00:48]} 27. Rfd1 {[%emt 0:07:03]} Rxd4 {[%emt 0:00:51]} 28. Rxd4 {[%emt 0:00:03]} Re8 {[%emt 0:01:30]} 29. Nc5 {[%emt 0:03:27]} Qb6 {[%emt 0:04:46] Black is weak on the light squares} 30. Qd2 {[%emt 0:02:44]} Ba8 {[%emt 0:01:18]} 31. Kh1 {[%emt 0:01:54]} a5 {[%emt 0:03:45] [#]} 32. a3 $1 {[%emt 0:01:10]} (32. bxa5 $2 Qxc5 33. Rd8 Qxc4 34. Rxe8+ Nxe8 $19) 32... axb4 {[%emt 0:00:26]} 33. axb4 {[%emt 0:00:26]} g6 {[%emt 0:02:40]} (33... Qb8 $16 {was called for.} 34. b5 e5) 34. Rd6 {[%emt 0:02:44]} Qc7 {[%emt 0:00:30][%cal Oa8d5]} 35. Qd4 {[%emt 0:01:39][%cal Oh1g1]} Qe7 {[%emt 0:00:48] [#]} 36. Ba4 {[%emt 0:01:42]} (36. Kg1 $1 $18) 36... Rb8 $16 {[%emt 0:00:31][%cal Oa8d5] Hoping for ...Bd5!.} 37. b5 {[%emt 0:02:22]} ({Better is} 37. h3 $16) 37... Ng4 $11 {[%emt 0:00:10] ( -> ...Qh4)} (37... Bd5 $5 38. Ra6 $8 Rd8 39. cxd5 Rxd5 $11) 38. Bd1 $1 {[%emt 0:01:30]} Qh4 {[%emt 0:00:56][%csl Gg4][%cal Rh4h2]} 39. Bxg4 {[%emt 0:00:46]} Qxg4 {[%emt 0:00:01][%csl Ga8][%cal Rg4g2]} 40. Rd8+ {[%emt 0:00:41]} Rxd8 {[%emt 0:00:01]} 41. Qxd8+ {[%emt 0:00:00] KQB-KQN. White is a pawn up.} Kh7 {[%emt 0:00:00][%csl Ga8][%cal Rg4g2]} (41... Kg7 $5 42. Qd2 $8 (42. Qxa8 $2 Qd1#) 42... Qf5 43. Qb2+ Kh7 $11) 42. Qd2 {[%emt 0:00:00][%cal Oh2h3]} (42. Qxa8 $2 Qd1#) 42... Bxg2+ {[%emt 0:00:00]} 43. Qxg2 {[%emt 0:00:00]} Qd1+ {[%emt 0:00:00]} 44. Qg1 {[%emt 0:00:00]} Qf3+ {[%emt 0:00:00]} 45. Qg2 {[%emt 0:00:00]} Qd1+ {[%emt 0:00:00]} 46. Qg1 {[%emt 0:00:00]} 1/2-1/2